[Event "*** Titled Tuesday Blitz"]
[Site "Chess.com"]
[Date "2020.12.01"]
[Round "6"]
[White "alexrustemov"]
[Black "Tssunami"]
[Result "0-1"]
[WhiteElo "2608"]
[BlackElo "2424"]
[TimeControl "180+1"]
[EndTime "11:06:27 PST"]
[Termination "Tssunami won by resignation"]

1. d4 {[%clk 0:03:00.9]} 1... Nf6 {[%clk 0:02:58]} 2. Nf3 {[%clk 0:02:59.9]}
2... e6 {[%clk 0:02:58.2]} 3. c4 {[%clk 0:02:59.4]} 3... b6 {[%clk 0:02:56.5]}
4. a3 {[%clk 0:02:58.1]} 4... Ba6 {[%clk 0:02:52.2]} 5. Qc2 {[%clk 0:02:57.2]}
5... Be7 {[%clk 0:02:51.7]} 6. e4 {[%clk 0:02:53.2]} 6... d5 {[%clk 0:02:51.4]}
7. e5 {[%clk 0:02:49.1]} 7... Ne4 {[%clk 0:02:46.1]} 8. Bd3 {[%clk 0:02:41.5]}
8... Ng5 {[%clk 0:02:39.8]} 9. Bxg5 {[%clk 0:02:34]} 9... Bxg5 {[%clk
0:02:40.7]} 10. cxd5 {[%clk 0:02:32.9]} 10... Bxd3 {[%clk 0:02:31.6]} 11. Qxd3
{[%clk 0:02:33.8]} 11... exd5 {[%clk 0:02:28.4]} 12. Nc3 {[%clk 0:02:21.8]}
12... Be7 {[%clk 0:02:16.7]} 13. h4 {[%clk 0:02:10.6]} 13... h5 {[%clk
0:02:05.5]} 14. e6 {[%clk 0:02:07.7]} 14... O-O {[%clk 0:01:54.9]} 15. exf7+
{[%clk 0:02:01.4]} 15... Rxf7 {[%clk 0:01:55.8]} 16. Qg6 {[%clk 0:01:59.9]}
16... Nd7 {[%clk 0:01:24.4]} 17. Nxd5 {[%clk 0:01:49]} 17... Nf8 {[%clk
0:01:20]} 18. Qe4 {[%clk 0:01:44.6]} 18... c6 {[%clk 0:01:12.5]} 19. Nf4 {[%clk
0:01:34.7]} 19... Bd6 {[%clk 0:01:02.7]} 20. Ne5 {[%clk 0:01:34.3]} 20... Re7
{[%clk 0:00:22.7]} 21. O-O-O {[%clk 0:01:27.1]} 21... Qe8 {[%clk 0:00:18.9]} 22.
Rhe1 {[%clk 0:01:25.3]} 22... Nd7 {[%clk 0:00:15.5]} 23. Nfg6 {[%clk 0:01:19.5]}
23... Re6 {[%clk 0:00:13]} 24. f4 {[%clk 0:01:19]} 24... Nf6 {[%clk 0:00:12.2]}
25. Qf5 {[%clk 0:01:11.4]} 25... Nd5 {[%clk 0:00:07.8]} 26. Kb1 {[%clk
0:01:02.2]} 26... Bxe5 {[%clk 0:00:07.4]} 27. dxe5 {[%clk 0:00:54]} 27... Qxg6
{[%clk 0:00:06.4]} 28. Qxg6 {[%clk 0:00:42.7]} 28... Rxg6 {[%clk 0:00:07.3]} 29.
f5 {[%clk 0:00:38]} 29... Rxg2 {[%clk 0:00:07]} 30. Rc1 {[%clk 0:00:35.1]} 30...
Rc8 {[%clk 0:00:06.9]} 31. Red1 {[%clk 0:00:34.2]} 31... Re8 {[%clk 0:00:06.3]}
32. e6 {[%clk 0:00:33.2]} 32... Ne7 {[%clk 0:00:06.2]} 33. Rd7 {[%clk
0:00:30.1]} 33... Nxf5 {[%clk 0:00:06.1]} 34. Rxc6 {[%clk 0:00:29]} 34... a5
{[%clk 0:00:05.8]} 35. Rd5 {[%clk 0:00:23.6]} 35... Rf2 {[%clk 0:00:05.4]} 36.
Rxb6 {[%clk 0:00:22.2]} 36... Ne7 {[%clk 0:00:05.1]} 37. Rxh5 {[%clk 0:00:21.7]}
37... Rf6 {[%clk 0:00:05]} 38. Rxa5 {[%clk 0:00:21.2]} 38... Ng6 {[%clk
0:00:05.1]} 39. Raa6 {[%clk 0:00:19.8]} 39... Nxh4 {[%clk 0:00:05.1]} 40. a4
{[%clk 0:00:20.4]} 40... g5 {[%clk 0:00:05.2]} 41. Rb5 {[%clk 0:00:15.3]} 41...
Rg6 {[%clk 0:00:04.9]} 42. Raa5 {[%clk 0:00:15.2]} 42... g4 {[%clk 0:00:04.5]}
43. Rg5 {[%clk 0:00:15.1]} 43... Kg7 {[%clk 0:00:04.9]} 44. Ra7+ {[%clk
0:00:12.7]} 44... Kh6 {[%clk 0:00:04.9]} 45. Re5 {[%clk 0:00:09.9]} 45... Rexe6
{[%clk 0:00:04.7]} 46. Re4 {[%clk 0:00:10.6]} 46... g3 {[%clk 0:00:04.8]} 47.
Ra8 {[%clk 0:00:11.2]} 47... Kg5 {[%clk 0:00:04.6]} 48. Rc4 {[%clk 0:00:07.1]}
48... Nf5 {[%clk 0:00:04.8]} 49. Ra5 {[%clk 0:00:07.3]} 49... g2 {[%clk
0:00:05.2]} 50. Rcc5 {[%clk 0:00:07.6]} 50... g1=Q+ {[%clk 0:00:05.1]} 51. Ka2
{[%clk 0:00:08.2]} 51... Rgf6 {[%clk 0:00:05.7]} 52. Rcb5 {[%clk 0:00:06.9]}
52... Qd4 {[%clk 0:00:05.8]} 53. Rb3 {[%clk 0:00:06.7]} 53... Qc4 {[%clk
0:00:05.9]} 54. Ka3 {[%clk 0:00:06.5]} 54... Rb6 {[%clk 0:00:06]} 55. Rab5
{[%clk 0:00:06.3]} 55... Rxb5 {[%clk 0:00:06.1]} 56. Rxb5 {[%clk 0:00:07.2]}
56... Rc6 {[%clk 0:00:06]} 57. b3 {[%clk 0:00:08.1]} 57... Qc1+ {[%clk
0:00:05.9]} 58. Kb4 {[%clk 0:00:08.6]} 58... Kf6 {[%clk 0:00:05.7]} 59. a5
{[%clk 0:00:06.6]} 59... Qc3+ {[%clk 0:00:06.1]} 60. Ka4 {[%clk 0:00:06.7]}
60... Nd4 {[%clk 0:00:06.7]} 61. Rb6 {[%clk 0:00:05.9]} 61... Qa1+ {[%clk
0:00:06.6]} 62. Kb4 {[%clk 0:00:05.9]} 62... Rxb6+ {[%clk 0:00:07.2]} 63. axb6
{[%clk 0:00:05.7]} 63... Nxb3 {[%clk 0:00:07.8]} 64. b7 {[%clk 0:00:05.3]} 64...
Qa7 {[%clk 0:00:08.3]} 0-1

[Event "*** Titled Tuesday Blitz"]
[Site "Chess.com"]
[Date "2020.12.01"]
[Round "6"]
[White "AniJak"]
[Black "parintele_chess"]
[Result "1-0"]
[WhiteElo "2389"]
[BlackElo "2194"]
[TimeControl "180+1"]
[EndTime "11:06:31 PST"]
[Termination "AniJak won by resignation"]

1. e4 {[%clk 0:03:00.9]} 1... c5 {[%clk 0:02:59.1]} 2. Nf3 {[%clk 0:02:59.3]}
2... Nc6 {[%clk 0:02:59.4]} 3. d4 {[%clk 0:02:59.3]} 3... cxd4 {[%clk
0:03:00.3]} 4. Nxd4 {[%clk 0:02:59.8]} 4... Nf6 {[%clk 0:03:00.7]} 5. Nc3 {[%clk
0:03:00]} 5... h5 {[%clk 0:03:00.3]} 6. Bg5 {[%clk 0:02:50.9]} 6... Qa5 {[%clk
0:02:59.8]} 7. Bxf6 {[%clk 0:02:44.3]} 7... gxf6 {[%clk 0:03:00.7]} 8. Bc4
{[%clk 0:02:36.5]} 8... Qe5 {[%clk 0:02:52]} 9. Nf3 {[%clk 0:02:29]} 9... Qb8
{[%clk 0:02:51.6]} 10. Nd5 {[%clk 0:02:18.9]} 10... e6 {[%clk 0:02:46]} 11. Ne3
{[%clk 0:01:54]} 11... Ne5 {[%clk 0:02:40.6]} 12. Be2 {[%clk 0:01:51.9]} 12...
b6 {[%clk 0:02:26.3]} 13. O-O {[%clk 0:01:49.1]} 13... Bc5 {[%clk 0:02:21.2]}
14. Nxe5 {[%clk 0:01:45.8]} 14... Qxe5 {[%clk 0:02:20.3]} 15. Nc4 {[%clk
0:01:44.8]} 15... Qg5 {[%clk 0:02:16.1]} 16. Nd6+ {[%clk 0:01:38.6]} 16... Ke7
{[%clk 0:02:09]} 17. Nxc8+ {[%clk 0:01:30.3]} 17... Raxc8 {[%clk 0:02:09.9]} 18.
Qd3 {[%clk 0:01:28.1]} 18... h4 {[%clk 0:01:58]} 19. h3 {[%clk 0:01:28.3]} 19...
Rhg8 {[%clk 0:01:50.9]} 20. Bf3 {[%clk 0:01:23]} 20... Bd6 {[%clk 0:01:44.5]}
21. Rfd1 {[%clk 0:01:11.4]} 21... Qe5 {[%clk 0:01:34.3]} 22. Kf1 {[%clk
0:01:08.4]} 22... Rc6 {[%clk 0:01:21]} 23. c3 {[%clk 0:01:07.3]} 23... Rd8
{[%clk 0:01:07.7]} 24. Rd2 {[%clk 0:01:06.7]} 24... Bc5 {[%clk 0:00:57.6]} 25.
Rad1 {[%clk 0:01:04.5]} 25... Rd6 {[%clk 0:00:57.3]} 26. Qa6 {[%clk 0:01:00.7]}
26... Rxd2 {[%clk 0:00:50.7]} 27. Rxd2 {[%clk 0:01:01.6]} 27... Qf4 {[%clk
0:00:41.7]} 28. Qd3 {[%clk 0:00:49.5]} 28... Qh2 {[%clk 0:00:37.6]} 29. b4
{[%clk 0:00:33.1]} 29... Bd6 {[%clk 0:00:37.6]} 30. a3 {[%clk 0:00:33.5]} 30...
Qh1+ {[%clk 0:00:28.6]} 31. Ke2 {[%clk 0:00:33.3]} 31... Be5 {[%clk 0:00:25.1]}
32. Rd1 {[%clk 0:00:28.2]} 32... Qh2 {[%clk 0:00:25]} 33. c4 {[%clk 0:00:22.2]}
33... Qf4 {[%clk 0:00:21.5]} 34. c5 {[%clk 0:00:22]} 34... bxc5 {[%clk
0:00:21.7]} 35. bxc5 {[%clk 0:00:22.4]} 35... Rb8 {[%clk 0:00:21.3]} 36. Qxd7+
{[%clk 0:00:21.9]} 36... Kf8 {[%clk 0:00:21]} 37. c6 {[%clk 0:00:14.6]} 37...
Rb2+ {[%clk 0:00:18.1]} 38. Rd2 {[%clk 0:00:14.9]} 38... Rxd2+ {[%clk
0:00:11.2]} 39. Qxd2 {[%clk 0:00:15]} 39... Qxd2+ {[%clk 0:00:12.1]} 40. Kxd2
{[%clk 0:00:15.3]} 40... Ke7 {[%clk 0:00:12.5]} 41. Be2 {[%clk 0:00:13.6]} 41...
Kd6 {[%clk 0:00:12.4]} 42. Bb5 {[%clk 0:00:13.4]} 42... a6 {[%clk 0:00:10.5]}
43. Bxa6 {[%clk 0:00:12.3]} 43... Kxc6 {[%clk 0:00:11.4]} 44. Be2 {[%clk
0:00:12.3]} 44... Bd6 {[%clk 0:00:10.3]} 45. a4 {[%clk 0:00:12.6]} 45... Bc5
{[%clk 0:00:10.4]} 46. f4 {[%clk 0:00:11.3]} 46... e5 {[%clk 0:00:08.3]} 47.
fxe5 {[%clk 0:00:10.5]} 47... fxe5 {[%clk 0:00:09.2]} 48. Bb5+ {[%clk
0:00:09.1]} 48... Kb6 {[%clk 0:00:09.2]} 49. Be8 {[%clk 0:00:08.2]} 49... f6
{[%clk 0:00:09.3]} 50. Kd3 {[%clk 0:00:08.9]} 50... Ka5 {[%clk 0:00:09.3]} 51.
Kc4 {[%clk 0:00:09]} 51... Be3 {[%clk 0:00:09]} 52. Kd5 {[%clk 0:00:09]} 52...
Bg5 {[%clk 0:00:08.6]} 53. Ke6 {[%clk 0:00:09.4]} 53... Kb6 {[%clk 0:00:08.7]}
54. Kf5 {[%clk 0:00:09.7]} 54... Ka5 {[%clk 0:00:09]} 55. Kg4 {[%clk 0:00:09.6]}
55... Kb6 {[%clk 0:00:09]} 56. g3 {[%clk 0:00:10.1]} 56... hxg3 {[%clk 0:00:09]}
57. Kxg3 {[%clk 0:00:11]} 57... Bf4+ {[%clk 0:00:09.1]} 58. Kg4 {[%clk
0:00:11.2]} 58... Bd2 {[%clk 0:00:09.2]} 59. h4 {[%clk 0:00:11.5]} 59... Bf4
{[%clk 0:00:09.2]} 60. Kf5 {[%clk 0:00:11.1]} 60... Bd2 {[%clk 0:00:09.3]} 61.
Kxf6 {[%clk 0:00:10.9]} 61... Bf4 {[%clk 0:00:08.9]} 62. h5 {[%clk 0:00:10.8]}
62... Kc5 {[%clk 0:00:09.1]} 63. Kg6 {[%clk 0:00:10.7]} 63... Kd4 {[%clk
0:00:09.2]} 64. Bc6 {[%clk 0:00:10.9]} 64... Kc5 {[%clk 0:00:08.6]} 65. Bd5
{[%clk 0:00:11.2]} 65... Kd6 {[%clk 0:00:08.7]} 66. h6 {[%clk 0:00:11.2]} 1-0

[Event "*** Titled Tuesday Blitz"]
[Site "Chess.com"]
[Date "2020.12.01"]
[Round "6"]
[White "zverr1"]
[Black "anon102030"]
[Result "0-1"]
[WhiteElo "2475"]
[BlackElo "2717"]
[TimeControl "180+1"]
[EndTime "11:06:32 PST"]
[Termination "anon102030 won by checkmate"]

1. d4 {[%clk 0:03:00.9]} 1... Nf6 {[%clk 0:02:58.3]} 2. c4 {[%clk 0:03:01.1]}
2... e5 {[%clk 0:02:58.2]} 3. dxe5 {[%clk 0:03:01.1]} 3... Ng4 {[%clk
0:02:58.1]} 4. Bf4 {[%clk 0:03:01.3]} 4... Nc6 {[%clk 0:02:57.5]} 5. Nf3 {[%clk
0:03:01]} 5... Bb4+ {[%clk 0:02:58]} 6. Nbd2 {[%clk 0:02:59.8]} 6... Qe7 {[%clk
0:02:58.9]} 7. e3 {[%clk 0:02:59.2]} 7... Ngxe5 {[%clk 0:02:55.6]} 8. Nxe5
{[%clk 0:03:00.1]} 8... Nxe5 {[%clk 0:02:56.2]} 9. Be2 {[%clk 0:03:00.2]} 9...
d6 {[%clk 0:02:53.7]} 10. O-O {[%clk 0:02:59]} 10... Bxd2 {[%clk 0:02:49.6]} 11.
Qxd2 {[%clk 0:02:59.9]} 11... O-O {[%clk 0:02:49.9]} 12. b4 {[%clk 0:02:53.5]}
12... Re8 {[%clk 0:02:39.1]} 13. Rac1 {[%clk 0:02:43.3]} 13... Bf5 {[%clk
0:02:25.8]} 14. Rfd1 {[%clk 0:02:29.5]} 14... Rad8 {[%clk 0:02:25.4]} 15. h3
{[%clk 0:02:27.4]} 15... b6 {[%clk 0:02:15.5]} 16. Qd4 {[%clk 0:02:13.5]} 16...
Nd7 {[%clk 0:02:02.9]} 17. Bf3 {[%clk 0:02:08.8]} 17... h6 {[%clk 0:01:49.3]}
18. Bc6 {[%clk 0:02:03.1]} 18... Rf8 {[%clk 0:01:48.8]} 19. e4 {[%clk
0:01:50.8]} 19... Bg6 {[%clk 0:01:43.5]} 20. f3 {[%clk 0:01:43.2]} 20... Ne5
{[%clk 0:01:40]} 21. Bxe5 {[%clk 0:01:41.9]} 21... dxe5 {[%clk 0:01:39.1]} 22.
Qc3 {[%clk 0:01:38.9]} 22... a5 {[%clk 0:01:34.9]} 23. bxa5 {[%clk 0:01:32.5]}
23... Qc5+ {[%clk 0:01:34.4]} 24. Kh2 {[%clk 0:01:31.8]} 24... Qxc6 {[%clk
0:01:33.4]} 25. Qxe5 {[%clk 0:01:25.9]} 25... bxa5 {[%clk 0:01:25]} 26. Qxa5
{[%clk 0:01:18.9]} 26... Rxd1 {[%clk 0:01:18.8]} 27. Rxd1 {[%clk 0:01:18.5]}
27... Qxc4 {[%clk 0:01:19.4]} 28. Rd2 {[%clk 0:01:12.4]} 28... c5 {[%clk
0:01:03.1]} 29. Qc7 {[%clk 0:01:07]} 29... Ra8 {[%clk 0:00:56.7]} 30. Rd5 {[%clk
0:00:59.6]} 30... Qxa2 {[%clk 0:00:48.5]} 31. Qxc5 {[%clk 0:00:51]} 31... Qb2
{[%clk 0:00:44.7]} 32. Qc7 {[%clk 0:00:39.4]} 32... Qb8 {[%clk 0:00:28.5]} 33.
Qxb8+ {[%clk 0:00:36.3]} 33... Rxb8 {[%clk 0:00:29.4]} 34. h4 {[%clk 0:00:36]}
34... h5 {[%clk 0:00:27]} 35. Re5 {[%clk 0:00:35.2]} 35... Kf8 {[%clk
0:00:26.6]} 36. Kg3 {[%clk 0:00:34.7]} 36... Rb2 {[%clk 0:00:25.4]} 37. Ra5
{[%clk 0:00:33.4]} 37... f6 {[%clk 0:00:22.2]} 38. Ra8+ {[%clk 0:00:32.9]} 38...
Be8 {[%clk 0:00:21.3]} 39. Ra7 {[%clk 0:00:33.8]} 39... Rd2 {[%clk 0:00:06]} 40.
Ra5 {[%clk 0:00:33.1]} 40... Rd6 {[%clk 0:00:05.6]} 41. Kf4 {[%clk 0:00:32.2]}
41... Ke7 {[%clk 0:00:05.8]} 42. Ra7+ {[%clk 0:00:30.2]} 42... Rd7 {[%clk
0:00:06.4]} 43. Ra5 {[%clk 0:00:31.1]} 43... Rc7 {[%clk 0:00:06.4]} 44. Rd5
{[%clk 0:00:30.5]} 44... Bf7 {[%clk 0:00:06.4]} 45. Ra5 {[%clk 0:00:30.4]} 45...
Rd7 {[%clk 0:00:07.3]} 46. Rb5 {[%clk 0:00:30.6]} 46... Ra7 {[%clk 0:00:07.3]}
47. g3 {[%clk 0:00:28.7]} 47... Be8 {[%clk 0:00:07.3]} 48. Rc5 {[%clk
0:00:28.3]} 48... Ra2 {[%clk 0:00:06.7]} 49. e5 {[%clk 0:00:25.4]} 49... Ra4+
{[%clk 0:00:05.4]} 50. Ke3 {[%clk 0:00:25.9]} 50... Ra3+ {[%clk 0:00:05.2]} 51.
Kf4 {[%clk 0:00:25.9]} 51... Ra4+ {[%clk 0:00:05.2]} 52. Ke3 {[%clk 0:00:26]}
52... f5 {[%clk 0:00:05]} 53. f4 {[%clk 0:00:12]} 53... g6 {[%clk 0:00:04.3]}
54. Rc7+ {[%clk 0:00:10.3]} 54... Ke6 {[%clk 0:00:04.6]} 55. Rb7 {[%clk
0:00:11.2]} 55... Ra3+ {[%clk 0:00:04.5]} 56. Kf2 {[%clk 0:00:11.1]} 56... Bc6
{[%clk 0:00:04.9]} 57. Rg7 {[%clk 0:00:10.3]} 57... Rf3+ {[%clk 0:00:04.2]} 58.
Kg2 {[%clk 0:00:10.1]} 58... Rxf4+ {[%clk 0:00:04.1]} 59. Kh3 {[%clk 0:00:10.6]}
59... Rg4 {[%clk 0:00:05]} 60. Rc7 {[%clk 0:00:08.3]} 60... Bd5 {[%clk
0:00:05.3]} 61. Ra7 {[%clk 0:00:07.8]} 61... Kxe5 {[%clk 0:00:05.6]} 62. Ra6
{[%clk 0:00:07.5]} 62... f4 {[%clk 0:00:04]} 63. gxf4+ {[%clk 0:00:07.3]} 63...
Kxf4 {[%clk 0:00:04.8]} 64. Rf6+ {[%clk 0:00:07.1]} 64... Ke5 {[%clk 0:00:04.6]}
65. Rf2 {[%clk 0:00:06.7]} 65... Be6 {[%clk 0:00:03.8]} 66. Re2+ {[%clk
0:00:06.6]} 66... Re4+ {[%clk 0:00:03.9]} 67. Kg3 {[%clk 0:00:06]} 67... Rxe2
{[%clk 0:00:04.8]} 68. Kf3 {[%clk 0:00:06.9]} 68... Re4 {[%clk 0:00:05]} 69. Kg3
{[%clk 0:00:07.8]} 69... Rg4+ {[%clk 0:00:05.5]} 70. Kf3 {[%clk 0:00:08.7]}
70... Rxh4 {[%clk 0:00:05.7]} 71. Kf2 {[%clk 0:00:09.6]} 71... Rg4 {[%clk
0:00:06.5]} 72. Ke3 {[%clk 0:00:10.5]} 72... h4 {[%clk 0:00:07.2]} 73. Kf3
{[%clk 0:00:11.4]} 73... h3 {[%clk 0:00:08.1]} 74. Kf2 {[%clk 0:00:11.9]} 74...
h2 {[%clk 0:00:09]} 75. Ke3 {[%clk 0:00:12.8]} 75... h1=Q {[%clk 0:00:09.9]} 76.
Ke2 {[%clk 0:00:13.1]} 76... Qh3 {[%clk 0:00:10.8]} 77. Kd2 {[%clk 0:00:14]}
77... Rg2+ {[%clk 0:00:11.7]} 78. Ke1 {[%clk 0:00:14.4]} 78... Qh1# {[%clk
0:00:12.6]} 0-1

[Event "*** Titled Tuesday Blitz"]
[Site "Chess.com"]
[Date "2020.12.01"]
[Round "6"]
[White "Soltan49"]
[Black "Pertinhez76"]
[Result "1-0"]
[WhiteElo "2218"]
[BlackElo "2022"]
[TimeControl "180+1"]
[EndTime "11:06:34 PST"]
[Termination "Soltan49 won on time"]

1. d4 {[%clk 0:03:00.9]} 1... Nf6 {[%clk 0:02:58.8]} 2. Nf3 {[%clk 0:02:54]}
2... g6 {[%clk 0:02:57.3]} 3. Bg5 {[%clk 0:02:54.4]} 3... Bg7 {[%clk 0:02:56.1]}
4. Nc3 {[%clk 0:02:55.1]} 4... d6 {[%clk 0:02:55.6]} 5. Qd2 {[%clk 0:02:55.7]}
5... h6 {[%clk 0:02:51.7]} 6. Bf4 {[%clk 0:02:52.1]} 6... Nc6 {[%clk 0:02:50.5]}
7. d5 {[%clk 0:02:49.5]} 7... Nb8 {[%clk 0:02:50]} 8. e4 {[%clk 0:02:48.2]} 8...
Nbd7 {[%clk 0:02:45.9]} 9. O-O-O {[%clk 0:02:36.5]} 9... a6 {[%clk 0:02:45.7]}
10. Bd3 {[%clk 0:02:18.5]} 10... b5 {[%clk 0:02:43]} 11. Rhe1 {[%clk 0:02:18.5]}
11... b4 {[%clk 0:02:41.1]} 12. Na4 {[%clk 0:02:17.9]} 12... e5 {[%clk
0:02:35.7]} 13. dxe6 {[%clk 0:02:17.4]} 13... fxe6 {[%clk 0:02:34.4]} 14. Qxb4
{[%clk 0:02:01.9]} 14... O-O {[%clk 0:02:29.8]} 15. Qd2 {[%clk 0:02:01.3]} 15...
Kh7 {[%clk 0:02:28.5]} 16. e5 {[%clk 0:02:00.3]} 16... dxe5 {[%clk 0:02:26.1]}
17. Nxe5 {[%clk 0:02:00.3]} 17... Nxe5 {[%clk 0:02:25.8]} 18. Bxe5 {[%clk
0:02:00.3]} 18... Qe7 {[%clk 0:02:17.8]} 19. Nc3 {[%clk 0:01:32.4]} 19... Bb7
{[%clk 0:02:13.7]} 20. f3 {[%clk 0:01:31.4]} 20... Rad8 {[%clk 0:02:10.2]} 21.
Qf2 {[%clk 0:01:29.5]} 21... Qb4 {[%clk 0:02:02.5]} 22. Qg3 {[%clk 0:01:25.5]}
22... Rxd3 {[%clk 0:01:56.5]} 23. Rxd3 {[%clk 0:01:20.4]} 23... Rb8 {[%clk
0:01:44.7]} 24. Bxf6 {[%clk 0:01:12.5]} 24... Bxf6 {[%clk 0:01:42.8]} 25. Rxe6
{[%clk 0:01:13]} 25... Bg5+ {[%clk 0:01:21.6]} 26. f4 {[%clk 0:01:09.2]} 26...
Bxf4+ {[%clk 0:01:16.8]} 27. Kd1 {[%clk 0:00:37.8]} 27... Bxg3 {[%clk
0:01:15.1]} 28. hxg3 {[%clk 0:00:38.7]} 28... Qg4+ {[%clk 0:01:11.7]} 29. Re2
{[%clk 0:00:36.8]} 29... Rf8 {[%clk 0:00:57.4]} 30. Kd2 {[%clk 0:00:30.1]} 30...
Rf7 {[%clk 0:00:57.1]} 31. Rde3 {[%clk 0:00:27.2]} 31... Qd4+ {[%clk 0:00:54.5]}
32. Ke1 {[%clk 0:00:24.8]} 32... a5 {[%clk 0:00:50.5]} 33. a4 {[%clk 0:00:22.4]}
33... Ba6 {[%clk 0:00:48.7]} 34. Nb5 {[%clk 0:00:21]} 34... Bxb5 {[%clk
0:00:45.7]} 35. axb5 {[%clk 0:00:21.9]} 35... Qxb2 {[%clk 0:00:41.1]} 36. Re5
{[%clk 0:00:20.7]} 36... Qb1+ {[%clk 0:00:36.9]} 37. Kd2 {[%clk 0:00:20.5]}
37... Qxb5 {[%clk 0:00:34.2]} 38. Rxb5 {[%clk 0:00:19.9]} 38... a4 {[%clk
0:00:22.1]} 39. Ra5 {[%clk 0:00:18.6]} 39... h5 {[%clk 0:00:19.7]} 40. Rxa4
{[%clk 0:00:17.7]} 40... Kh6 {[%clk 0:00:18.7]} 41. Rc4 {[%clk 0:00:17.7]} 41...
Rd7+ {[%clk 0:00:17.2]} 42. Ke1 {[%clk 0:00:17.5]} 42... Kg5 {[%clk 0:00:16.7]}
43. Rc6 {[%clk 0:00:17.6]} 43... Kf5 {[%clk 0:00:15.4]} 44. Ree6 {[%clk
0:00:17.3]} 44... Rf7 {[%clk 0:00:13.6]} 45. Rxg6 {[%clk 0:00:17.1]} 45... Ke5
{[%clk 0:00:13.4]} 46. Rg5+ {[%clk 0:00:16]} 46... Kd4 {[%clk 0:00:12.4]} 47.
Rxh5 {[%clk 0:00:16]} 47... Rg7 {[%clk 0:00:11.1]} 48. Rhc5 {[%clk 0:00:13.8]}
48... Ke4 {[%clk 0:00:03.5]} 49. Rxc7 {[%clk 0:00:12.1]} 49... Rg8 {[%clk
0:00:04.4]} 50. Re7+ {[%clk 0:00:11.8]} 50... Kd4 {[%clk 0:00:04]} 51. Rce5
{[%clk 0:00:12]} 51... Kc3 {[%clk 0:00:03.5]} 52. Re2 {[%clk 0:00:11.9]} 52...
Rh8 {[%clk 0:00:02.7]} 53. R7e3+ {[%clk 0:00:12.2]} 53... Kd4 {[%clk 0:00:01.8]}
54. Kf2 {[%clk 0:00:13.1]} 54... Rf8+ {[%clk 0:00:01]} 55. Rf3 {[%clk 0:00:14]}
55... Rg8 {[%clk 0:00:01.1]} 56. Rd2+ {[%clk 0:00:12.5]} 56... Ke4 {[%clk
0:00:01.2]} 57. c4 {[%clk 0:00:12.3]} 57... Ke5 {[%clk 0:00:02]} 58. Rc2 {[%clk
0:00:12.5]} 58... Ke6 {[%clk 0:00:02.9]} 59. c5 {[%clk 0:00:12.9]} 59... Rc8
{[%clk 0:00:03.5]} 60. c6 {[%clk 0:00:13.3]} 60... Rc7 {[%clk 0:00:04.4]} 61.
Rd3 {[%clk 0:00:12.4]} 61... Ke7 {[%clk 0:00:04.3]} 62. Rd7+ {[%clk 0:00:12.8]}
62... Rxd7 {[%clk 0:00:04.6]} 63. cxd7 {[%clk 0:00:13.7]} 63... Kxd7 {[%clk
0:00:04.1]} 64. Re2 {[%clk 0:00:14.6]} 64... Kd6 {[%clk 0:00:03.5]} 65. g4
{[%clk 0:00:15.5]} 65... Kd5 {[%clk 0:00:04.3]} 66. g5 {[%clk 0:00:16.4]} 66...
Kd4 {[%clk 0:00:05.2]} 67. g6 {[%clk 0:00:17.3]} 67... Kd3 {[%clk 0:00:06.1]}
68. g7 {[%clk 0:00:18.2]} 1-0